Cogmind - Beta 13 @@@ ROGUE MODE // 2024.05.17 @ 16:36:01 Player: Olafz Result: Destroyed by G-34 Mercenary with Small Laser Performance ------------- Evolutions (1) 500 Regions Visited (2) 400 Robots Destroyed (24) 120 Value Destroyed (465) 465 Prototype IDs (2) 40 Alien Tech Used (0) 0 Bonus (0) 0 TOTAL SCORE: 1525 Bonus ------- None Cogmind --------- Core Integrity 0/400 Matter 248/300 Energy 99/100 System Corruption 0% Temperature Cool (6) Movement Core (350) Ox6 Location -9/Materials Parts ------- > --- POWER (1) -------- (None) > --- PROPULSION (2) --- (None) > --- UTILITY (4) ------ Large Storage Unit Targeting Computer > --- WEAPON (2) ------- (None) > --- INVENTORY (15) --- Ion Engine Ion Engine Light Ion Engine Improved Flight Unit Improved Flight Unit Medium Storage Unit Large Storage Unit Large Battery (200) Weight Redist. System Light Assault Rifle Flail Peak State ------------ > --- POWER ------------ Improved Ion Engine > --- PROPULSION ------- Aluminum Leg Aluminum Leg > --- UTILITY ---------- Cooling System Large Storage Unit Structural Scanner Targeting Computer > --- WEAPON ----------- Medium Laser Medium Laser > --- INVENTORY -------- Ion Engine Ion Engine Light Ion Engine Light Ion Engine Aluminum Leg Aluminum Leg Aluminum Leg Improved Flight Unit Improved Flight Unit Heat Sink Medium Storage Unit Large Storage Unit Large Battery Weight Redist. System Medium Laser [Rating: 13] Favorites ----------- Power Ion Engine Engine Ion Engine Propulsion Aluminum Leg Leg Aluminum Leg Utility Large Storage Unit Device Heat Sink Storage Large Storage Unit Processor Targeting Computer Weapon Medium Laser Energy Gun Medium Laser Ballistic Gun Heavy Assault Rifle Build | -11 -10 -9 ------- Run | Yrd Mat Mat Slots Evolved 2 | . . 2 Power . | . . . Propulsion . | . . . Utility 2 | . . 2 Weapon . | . . . Parts Attached 22 | . 3 19 Power 3 | . . 3 Engine 3 | . . 3 Core . | . . . Reactor . | . . . Propulsion 6 | . . 6 Treads . | . . . Leg 6 | . . 6 Wheel . | . . . Hover . | . . . Flight . | . . . Utility 6 | . 1 5 Device 4 | . . 4 Storage 1 | . 1 . Processor 1 | . . 1 Hackware . | . . . Protection . | . . . Artifact . | . . . Weapon 7 | . 2 5 Energy Gun 4 | . 2 2 Energy Cannon . | . . . Ballistic Gun 3 | . . 3 Ballistic Cannon . | . . . Launcher . | . . . Special Weapon . | . . . Impact Weapon . | . . . Slashing Weapon . | . . . Piercing Weapon . | . . . Special Melee Weapon . | . . . Unidentified Prototypes . | . . . Parts Lost 19 | . . 19 Power 3 | . . 3 Propulsion 5 | . . 5 Utility 4 | . . 4 Weapon 7 | . . 7 Highest Loss Streak 9 | . . 9 To Critical Strikes . | . . . Average Slot Usage (%) 86 | . 85 87 Engine 11 | . 14 10 Leg 24 | . 28 21 Device 8 | . . 15 Storage 12 | . 14 11 Processor 5 | . . 9 Energy Gun 20 | . 28 15 Ballistic Gun 2 | . . 4 Naked Turns . | . . . Heaviest Build 34 | 13 33 34 Greatest Support 20 | 20 20 20 Greatest Overweight (x) 6 | . 1 6 Average Overweight (x) . | . . 1 Largest Inventory Capacity 15 | . 15 15 Average Capacity 14 | . 14 15 Most Carried 15 | . 15 15 Average Carried 11 | . 11 11 Final Capacity 15 | 8 15 15 Final Carried 11 | 6 11 11 Class Distribution -------------------- 76% | Mutant 23% | Scavenger-Mutant Dominant Class ---------------- Mutant | -10/Materials Mutant | -9/Materials Resources | -11 -10 -9 ----------- Run | Yrd Mat Mat Matter Collected 415 | 200 48 167 Remotely . | . . . Salvage Created 837 | . 143 694 Parts 54 | . 11 43 Haulers Intercepted 1 | . . 1 Recyclers Shooed 1 | . . 1 Parts Field Recycled . | . . . Retrieved Matter . | . . . Parts Self-Destructed . | . . . Prevented . | . . . Kills | -11 -10 -9 ------- Run | Yrd Mat Mat Combat Hostiles Destroyed 17 | . 5 12 Guns 17 | . 5 12 Classes Destroyed 7 | . 3 4 Worker 3 | . 1 2 Hauler 1 | . . 1 Recycler 2 | . . 2 Watcher 1 | . . 1 Swarmer 7 | . 3 4 Grunt 8 | . 2 6 Sentry 2 | . . 2 Best Kill Streak 3 | . 3 3 Combat Bots Only 3 | . 3 3 Max Kills in Single Turn 1 | . 1 1 Gunslinging . | . . . Exploded . | . . . Melee . | . . . Uniques/NPCs Destroyed . | . . . Combat | -11 -10 -9 -------- Run | Yrd Mat Mat Hostile Shots Fired 212 | . 31 181 Missed 60 | . 8 52 Damage Taken 1866 | . 215 1651 Core 453 | . 51 402 Absorbed by Shields . | . . . Core Remaining (%) 89 | 100 79 . Volleys Fired 105 | . 18 87 Largest 2 | . 2 2 Hottest 100 | . 100 100 Shots Fired 177 | . 36 141 Gun 177 | . 36 141 Cannon . | . . . Launcher . | . . . Special . | . . . Kinetic 48 | . . 48 Thermal 129 | . 36 93 Explosive . | . . . Electromagnetic . | . . . Robot Hit Streak 10 | . 4 10 Robot Miss Streak 4 | . 2 4 Penetration Max . | . . . Secondary Targets 3 | . 2 1 Max Gunslinging Chain 1 | . 1 1 Shots Hit Robots 120 | . 21 99 Core Hits 43 | . 8 35 Critical Kills . | . . . Critical Parts Destroyed . | . . . Critical Strikes 8 | . 2 6 Burn 8 | . 2 6 Melee Attacks . | . . . Impact . | . . . Slashing . | . . . Piercing . | . . . Sneak Attacks . | . . . Combat Hostiles . | . . . Follow-up Attacks . | . . . Damage Inflicted 1535 | . 264 1271 Guns 1534 | . 264 1270 Cannons . | . . . Explosions . | . . . Melee . | . . . Ramming 1 | . . 1 Kinetic 400 | . . 400 Thermal 1134 | . 264 870 Explosive . | . . . Electromagnetic . | . . . Impact . | . . . Slashing . | . . . Piercing . | . . . Highest Corruption 2 | . 2 . Average Corruption 2 | . 2 . Corruption Purged . | . . . Corruption Blocked . | . . . Effects 6 | . 6 . Message Errors 2 | . 2 . Matter Fused 2 | . 2 . Energy Discharges 1 | . 1 . Data Loss (minor) 1 | . 1 . Overload Shots . | . . . Overflow Damage . | . . . Projectiles . | . . . Explosions . | . . . Melee . | . . . Knockbacks . | . . . Impact . | . . . Kinetic . | . . . Secondary . | . . . Self-Inflicted Damage . | . . . Shots . | . . . Rammed . | . . . Targets Rammed 1 | . . 1 Kicked 1 | . . 1 Crushed . | . . . Highest Temperature 312 | . 312 199 Average Temperature 111 | . 119 99 Received Heat Transfer 744 | . 60 684 Effects 1 | . 1 . Shutdowns 1 | . 1 . Siege Activations . | . . . Robots Corrupted . | . . . Combat Hostiles . | . . . Parts Fried . | . . . Impact Corruptions . | . . . Robots Melted . | . . . Combat Hostiles . | . . . Parts Melted 11 | . 3 8 Heat Transferred 3959 | . 925 3034 Parts Sabotaged . | . . . Parts Stolen . | . . . Parts Stripped . | . . . Power Chain Reactions . | . . . Alert | -11 -10 -9 ------- Run | Yrd Mat Mat Peak Influence 204 | . 85 204 Initial 35 | . . 35 Average 60 | . 18 92 Maximum Alert Level 1 | . . 1 Low Security (%) 99 | . 100 98 Level 1 . | . . 1 Level 2 . | . . . Level 3 . | . . . Level 4 . | . . . Level 5 . | . . . High Security . | . . . Max Security . | . . . Squads Dispatched 3 | . 1 2 Investigation 1 | . . 1 Extermination . | . . . Reinforcement 2 | . 1 1 Assault . | . . . Garrison . | . . . Intercept . | . . . Searches Triggered . | . . . Construction Impeded . | . . . Haulers Reinforced . | . . . Active Scanning Responses . | . . . Cargo Convoy Interrupts . | . . . Stealth | -11 -10 -9 --------- Run | Yrd Mat Mat Distress Signals 3 | . . 3 Communications Jammed . | . . . Distress Signals . | . . . Times Spotted 32 | . 6 26 Peak Tracking Total 7 | . 3 7 Tactical Retreats 3 | . . 3 Traps | -11 -10 -9 ------- Run | Yrd Mat Mat Traps Triggered 2 | . 1 1 Indirectly . | . . . Trap Hack Attempts . | . . . Triggered . | . . . Disarmed . | . . . Reprogrammed . | . . . Reused . | . . . Traps Extracted . | . . . Installed . | . . . Triggered . | . . . Machines | -11 -10 -9 ---------- Run | Yrd Mat Mat Machines Disabled . | . . . Max in Single Turn . | . . . Machines Repaired . | . . . Machines Dismantled . | . . . Machines Sabotaged . | . . . Overloaded Fab Kills . | . . . Hacking | -11 -10 -9 --------- Run | Yrd Mat Mat Machines Accessed 6 | . 4 2 Terminals 5 | . 3 2 Fabricators . | . . . Repair Stations . | . . . Recycling Units 1 | . 1 . Scanalyzers . | . . . Garrison Access . | . . . Total Hacks 18 | . 10 8 Successful 6 | . 2 4 Failed 12 | . 8 4 Catastrophic 4 | . 3 1 Database Lockouts . | . . . Manual 9 | . 6 3 Terminals 16 | . 8 8 Fabricators . | . . . Repair Stations . | . . . Recycling Units 2 | . 2 . Scanalyzers . | . . . Garrison Access . | . . . Terminal Hacks 5 | . 1 4 Record 1 | . . 1 Prototype ID Bank 1 | . . 1 Branch Access Points 1 | . 1 . Alert Level 1 | . . 1 Registered Components 1 | . . 1 Fabricator Hacks . | . . . Repair Station Hacks . | . . . Recycling Unit Hacks 1 | . 1 . Retrieve Components 1 | . 1 . Scanalyzer . | . . . Garrison Access Hacks . | . . . Unauthorized Hacks . | . . . Terminals . | . . . Fabricators . | . . . Repair Stations . | . . . Recycling Units . | . . . Scanalyzers . | . . . Garrison Access . | . . . Data Cores Recovered . | . . . Used . | . . . Hacking Detections 5 | . 4 1 Full Trace Events 1 | . . 1 Feedback Events . | . . . Feedback Blocked . | . . . Robot Schematics Acquired . | . . . Robots Built . | . . . Authchips . | . . . Time . | . . . Total Robot Build Rating . | . . . Part Schematics Acquired . | . . . Parts Built . | . . . Authchips . | . . . Time . | . . . Total Part Build Rating . | . . . Parts Repaired . | . . . Time . | . . . Parts Recycled . | . . . Recycled Matter . | . . . Retrieved Matter . | . . . Retrieved Components 1 | . 1 . Parts Scanalyzed . | . . . Part Schematics Acquired . | . . . Parts Damaged . | . . . Bothacking | -11 -10 -9 ------------ Run | Yrd Mat Mat Used RIF Installer . | . . . Robots Hacked . | . . . Non-combat . | . . . Combat . | . . . Robot Hacks Applied . | . . . Relay Couplers Released . | . . . Fabnet Peak Effective % . | . . . Robots Rewired . | . . . Allies Hacked . | . . . Hacks Repelled . | . . . Allies | -11 -10 -9 -------- Run | Yrd Mat Mat Total Allies . | . . . Largest Group . | . . . Highest-Rated Group . | . . . Highest-Rated Ally . | . . . Total Orders . | . . . Ally Attacks . | . . . Total Damage . | . . . Kills . | . . . Allies Corrupted . | . . . Allies Melted . | . . . Intel | -11 -10 -9 ------- Run | Yrd Mat Mat Robot Analysis Total . | . . . Derelict Logs Recovered . | . . . Drone Launches . | . . . Drone Recoveries . | . . . Exploration | -11 -10 -9 ------------- Run | Yrd Mat Mat Turns Passed 1415 | . 601 814 Spaces Moved 535 | 1 280 254 Core 2 | . . 2 Treads . | . . . Legs 533 | 1 280 252 Wheels . | . . . Hover . | . . . Flight . | . . . Fastest Speed 120 | 120 120 190 Average Speed 189 | 120 186 192 Slowest Speed 350 | 120 190 350 Overloaded Moves . | . . . Propulsion Burnouts . | . . . Robots Hopped . | . . . Cave-ins Triggered . | . . . Exploration Rate (%) 23 | 2 41 28 Regions Visited 2 Branch Regions . Pre-discovered Areas . | . . . Known Exits Taken . | . . . Unknown Exits Taken 2 | 1 1 . Scrap Searched . | . . . Spaces Dug . | . . . Terrain Destroyed . | . . . Melee . | . . . Projectile . | . . . AOE . | . . . Terrain Rammed . | . . . Walls Destroyed . | . . . Machines Disabled . | . . . Actions | -11 -10 -9 --------- Run | Yrd Mat Mat Total 768 | . 329 439 Wait 76 | . 6 70 Move 533 | . 279 254 Hop . | . . . Pick Up 17 | . 11 6 Fast Attach 11 | . 3 8 Attach 7 | . . 7 Detach 3 | . 3 . Swap 4 | . . 4 Drop 11 | . 9 2 Fire 105 | . 18 87 Melee . | . . . Ram . | . . . Kick 1 | . . 1 Crush . | . . . Escape Stasis . | . . . Rewire . | . . . Trap . | . . . Miscellaneous . | . . . Route ------- -11/Scrapyard -10/Materials (discovered 2 exits: *Mat / Min) -9/Materials (discovered 1 exit: [*Min]) History --------- Turn | Location | Event 1 | -11/Scrapyard | Discovered new exit (range 0) 1 | -11/Scrapyard | Entered Materials 306 | -10/Materials | Build established: Mutant 500 | -10/Materials | Identified exit to Mines 579 | -10/Materials | Discovered new exit (range 5) 602 | -10/Materials | Entered another Materials area 602 | -9/Materials | Evolved 2 slots: Utility x2 1051 | -9/Materials | Lost 5 parts (1n2u2w) 1260 | -9/Materials | Discovered new exit (range 16) 1362 | -9/Materials | Build established: Scavenger-Mutant 1383 | -9/Materials | Core integrity fell below 50% 1403 | -9/Materials | Core integrity fell below 20% 1416 | -9/Materials | Destroyed by G-34 Mercenary with Small Laser Last Messages --------------- Acquired Lgt. Assault Rifle. Imp. Ion Engine destroyed. K-01 Serf cleans the Nuclear Reactor. K-01 Serf cleans the Machine. Aluminum Leg destroyed. Critical hit (Burn: +37). Lgt. Assault Rifle destroyed. Hvy. Assault Rifle destroyed. Kicked Y-45 Defender out of the way. Acquired Lgt. Assault Rifle. Aluminum Leg destroyed. Lgt. Ion Engine destroyed. Heat Sink destroyed. Critical hit (Burn: +37). R-06 Scavenger collects Flight Unit. Critical hit (Burn: +37). Lgt. Assault Rifle destroyed. Acquired 20 matter. Aluminum Leg destroyed. K-01 Serf cleans the Nuclear Reactor. Map ----- +----------------------------------------------------+ | ##+### """#?????????????????????????????????????? | | # """#?????????????????????????????????????? | | # #?????????????????????????????????????? | | + #?????????????????????????????????????? | | " # #?????????????????????????????????????? | | " # #?????????????????????????????????????? | | " #######?????????????????????????????????????? | | ##??????????????????????????????????????????? | | ##??????????????????????????????????????????? | | ##??????????????????????????????????????????? | | ##??????????????????????????????????????????? | | %!=*##??????????????????????????????????????????? | | !%=###?????????????###??????????????????????????? | | =%*!###????????????? [/? ???????????????????????? | | %!%%##?????????????? /! ???????????????????????? | | #% ##?????????????? /! ????????????????????????? | | # %###??###+###???? ?????????????????????????? | | % #####^^ ######+#####??????????????????????? | | ^^ ???????????????????????? | | % #########????????????????? | | """ """ #""|"!""#????????????????? | | ##### "T" """ # "|"!" #????????????????? | | ########### k"""g # ##### ?????????? | | #######???# ????????? | | ??????????# < ! ????????? | | ??????????# u w Y*@ ????????? | | ??????????# ########+## ##???????????????? | | ??????????# #?# %=%##########????????????????? | | ??????????# #?# = / #???????????? | | ??????????# #?# """ # #???????????? | | ??????????+ #?# """ #?""" """ #???????????? | | ??????????# #?# """ #??"" """?????????????????? | | ??????????### #?# #???? ""??????????????????? | | ????????????# #?### ####?????????????????????????? | | ????????????# #???##?????????????????????????????? | | ????????????? ???????????????????????????????????? | | ????????????? ???????????????????????????????????? | | ????????????? ???????????????????????????????????? | | ?????????????????????????????????????????????????? | | ?????????????????????????????????????????????????? | | ?????? ??????????????????????????????????????????? | | # ??????????????????????????????????????????? | | #### ??????????????????????????????????????????? | | ???????????????????????????????????????????? | | ???????????????????????????????????????????? | | ???????????????????????????????????????????? | | ###+?????????????????????????????????????????????? | | # ?????????????????????????????????????????????? | | # ???????????????????????????????????????????????? | | # ???????????????????????????????????????????????? | +----------------------------------------------------+ Best States ------------- Heat Dissipation 50 Energy Generation 12 Energy Capacity 265 Matter Stores 300 Matter Capacity 300 Sight Range 16 Terrain Scan Density 10 Evasion (%) 55 Targeting Accuracy 5 Item Schematics ----------------- None Robot Schematics ------------------ None Fabricated ------------ Nothing Alien Tech Used ----------------- None Achievements -------------- None Challenges ------------ None Game ------ Seed AssemblyPotentialLink Manual? 0 Play Time 00:12:55 Cumulative 148.0 hours Start 2024.05.17 @ 16:23:37 End 2024.05.17 @ 16:36:01 Sessions 1 Manual Loads 0 Difficulty Rogue Special Mode None Game No. 243 Rogue 241 Adventurer 2 Explorer 0 Win Type - Total 4 Types 3/0/0/1/0/0/0/0/0 Lore% 62 Gallery% 65 Achievement% 51 Wizard Run 0 Options --------- Layout 0 ASCII 0 Keyboard 1 Movement Numpad Keybinds 1 Fullscreen 2 Font 18/SmallcapsGlow Map View 76x50 Zoom Use 0% Tactical HUD 1 Map Filters NONE Filters NONE Steam 1 RUN: 7bd1dc09-0de2-478a-b533-68b8a65ee87a